fUSD/lending_fUSD_20251127
["ID","MTS","AMOUNT","RATE_DAILY","PERIOD"]
[394974388,1764240647316,-22890.6252674,0.00016,4]
[394974389,1764240647326,-20253.0647326,0.00016,4]
[394974390,1764240647337,-466.81370507,0.00016,4]
[394974391,1764240647348,-273.66089114,0.00016,4]
[394974392,1764240647361,-1372.2389833,0.00016,4]
[394974393,1764240648534,5595.06254183,0.00014158,2]
[394974394,1764240648555,842.53745817,0.00014158,2]
[394974395,1764240684039,-553.53658991,0.00014703,2]
[394974396,1764240687186,-321.92752633,0.00014703,2]
[394974397,1764240689875,-124.53588376,0.00014703,2]
[394974398,1764240689909,-332.45104408,0.00014703,2]
[394974399,1764240693037,1902.922,0.00014409,2]
[394974400,1764240693073,154.119,0.00014409,2]
[394974401,1764240694527,-469.98446326,0.00014703,2]
[394974402,1764240696509,-500.0,0.00014703,2]
[394974403,1764240697642,500.0,0.00014702,2]
[394974404,1764240697869,500.0,0.00014702,2]
[394974405,1764240699107,-500.0,0.00014703,2]
[394974406,1764240701263,-189.80341009,0.00014703,2]
[394974407,1764240705045,-500.0,0.00014703,2]
[394974408,1764240707285,-300.0,0.00014703,2]
[394974409,1764240709969,-431.05033016,0.00014703,2]
[394974410,1764240712547,-444.07039774,0.00014703,2]
[394974411,1764240714194,-500.0,0.00014703,2]
[394974412,1764240719581,-238.71243769,0.00014703,2]
[394974413,1764240721057,-300.0,0.00014703,2]
[394974414,1764240721666,300.0,0.00014702,2]
[394974415,1764240724864,-387.0721,0.00014703,2]
[394974416,1764240727054,-420.2104,0.00014703,2]
[394974417,1764240729187,-291.19084051,0.00014703,2]
[394974418,1764240730679,-559.01077994,0.00014703,2]
[394974419,1764240733285,-294.84921023,0.00014703,2]
[394974420,1764240736045,-541.07716231,0.00014703,2]
[394974421,1764240737888,-500.0,0.00014703,2]
[394974422,1764240741149,-196.32163179,0.00014703,2]
[394974423,1764240744884,-177.3655158,0.00014703,2]
[394974424,1764240746340,-300.0,0.00014703,2]
[394974425,1764240749291,-300.0,0.00014703,2]
[394974426,1764240751249,-300.0,0.00014703,2]
[394974427,1764240752839,-225.56507546,0.00014703,2]
[394974428,1764240754437,-454.10972621,0.00014703,2]
[394974429,1764240755915,-342.33339584,0.00014703,2]
[394974430,1764240757524,-273.56713682,0.00014703,2]
[394974431,1764240759590,-381.37746492,0.00014703,2]
[394974432,1764240761072,-174.03173377,0.00014703,2]
[394974433,1764240764138,-353.36575955,0.00014703,2]
[394974434,1764240767482,-500.0,0.00014703,2]
[394974435,1764240767586,439.26475531,0.00014702,2]
[394974436,1764240767629,500.0,0.00014702,2]
[394974437,1764240767891,500.0,0.00014702,2]
[394974438,1764240768203,500.0,0.00014702,2]
[394974439,1764240768511,500.0,0.00014702,2]
[394974440,1764240768814,500.0,0.00014702,2]
[394974441,1764240768882,-194.07285986,0.00014703,2]
[394974442,1764240769109,500.0,0.00014702,2]
[394974443,1764240769489,1200.0,0.00014702,2]
[394974444,1764240769535,500.0,0.00014702,2]
[394974445,1764240769834,552.32424884,0.00014702,2]
[394974446,1764240771388,-500.0,0.00014703,2]
[394974447,1764240772915,-486.19290993,0.00014703,2]
[394974448,1764240775582,-249.54801596,0.00014703,2]
[394974449,1764240778778,-500.0,0.00014703,2]
[394974450,1764240781244,108.84253768,0.00014702,2]
[394974451,1764240781266,191.15746232,0.00014702,2]
[394974452,1764240782528,-249.54801596,0.00014703,2]
[394974453,1764240785244,-250.45198404,0.00014703,2]
[394974454,1764240787421,-228.26601918,0.00014703,2]
[394974455,1764240789488,-347.25026301,0.00014703,2]
[394974456,1764240794102,-500.0,0.00014703,2]
[394974457,1764240795660,-195.31373055,0.00014703,2]
[394974458,1764240797430,-500.0,0.00014703,2]
[394974459,1764240801093,-191.43954845,0.00014703,2]
[394974460,1764240802693,-227.95818906,0.00014703,2]
[394974461,1764240804847,-500.0,0.00014703,2]
[394974462,1764240807359,-249.54801596,0.00014703,2]
[394974463,1764240809052,-500.0,0.00014703,2]
[394974464,1764240811281,-500.0,0.00014703,2]
[394974465,1764240812621,-500.0,0.00014703,2]
[394974466,1764240814066,-246.70617127,0.00014703,2]
[394974467,1764240816798,-581.0457758,0.00014703,2]
[394974468,1764240820356,-500.0,0.00014703,2]
[394974469,1764240823040,-500.0,0.00014703,2]
[394974470,1764240827718,-500.0,0.00014703,2]
[394974471,1764240830510,-500.0,0.00014703,2]
[394974472,1764240832551,-280.15032197,0.00014703,2]
[394974473,1764240834411,-225.43286318,0.00014703,2]
[394974474,1764240838631,-500.0,0.00014703,2]
[394974475,1764240840834,-500.0,0.00014703,2]
[394974476,1764240841854,300.0,0.00014702,2]
[394974477,1764240842435,-300.0,0.00014703,2]
[394974478,1764240842532,150.0,0.00014702,2]
[394974479,1764240844686,-500.0,0.00014703,2]
[394974480,1764240846744,-165.34815311,0.00014703,2]
[394974481,1764240853907,-167.48453338,0.00014703,2]
[394974482,1764240857188,-500.0,0.00014703,2]
[394974483,1764240860991,-160.98795251,0.00014703,2]
[394974484,1764240865327,-280.49203573,0.00014703,2]
[394974485,1764240870567,-173.66389438,0.00014703,2]
[394974486,1764240872606,-500.0,0.00014703,2]
[394974487,1764240874675,-500.0,0.00014703,2]
[394974488,1764240876853,-500.0,0.00014703,2]
[394974489,1764240879997,-244.61167602,0.00014703,2]
[394974490,1764240885023,-891.71688568,0.00014703,2]
[394974491,1764240887376,-195.04354709,0.00014703,2]
[394974492,1764240889483,-244.07286003,0.00014703,2]
[394974493,1764240893641,-500.0,0.00014703,2]
[394974494,1764240895193,-500.0,0.00014703,2]
[394974495,1764240896792,-500.0,0.00014703,2]
[394974496,1764240898269,-500.0,0.00014703,2]
[394974497,1764240901119,-500.0,0.00014703,2]
[394974498,1764240901306,1200.0,0.00014702,2]
[394974499,1764240903158,-249.54801596,0.00014703,2]
[394974500,1764240906301,-500.0,0.00014703,2]
[394974501,1764240908305,-302.0,0.00014703,2]
[394974502,1764240909736,164.46200511,0.00014603,2]
[394974503,1764240911154,-338.02,0.00014703,2]
[394974504,1764240913194,-500.0,0.00014703,2]
[394974505,1764240914750,-500.0,0.00014703,2]
[394974506,1764240917690,-283.07274848,0.00014703,2]
[394974507,1764240919722,-407.21253442,0.00014703,2]
[394974508,1764240921787,-500.0,0.00014703,2]
[394974509,1764240922018,5416.713625,0.00014629,2]
[394974510,1764240924333,-1365.28189182,0.00014703,2]
[394974511,1764240926385,-350.0,0.00014703,2]
[394974512,1764240928391,-255.92714014,0.00014703,2]
[394974513,1764240931990,-500.0,0.00014703,2]
[394974514,1764240933930,-500.0,0.00014703,2]
[394974515,1764240936352,3378.421566,0.00014629,2]
[394974516,1764240936435,-174.684007,0.00014703,2]
[394974517,1764240947839,1204.874809,0.00014603,2]
[394974518,1764240947862,3177.39310526,0.00014603,2]
[394974519,1764240950154,674.684007,0.00014629,2]
[394974520,1764240961285,300.0,0.00014702,2]
[394974521,1764240999683,3462.45438684,0.00014603,2]
[394974522,1764241020507,1636.3286,0.00014603,2]
[394974523,1764241021334,300.0,0.00014702,2]
[394974524,1764241022082,150.0,0.00014702,2]
[394974525,1764241026855,5963.7796,0.00014603,2]
[394974526,1764241030484,578.20924308,0.00014703,2]
[394974527,1764241031152,500.0,0.00014703,2]
[394974528,1764241031240,500.0,0.00014703,2]
[394974529,1764241031744,500.0,0.00014703,2]
[394974530,1764241031845,500.0,0.00014703,2]
[394974531,1764241032370,500.0,0.00014703,2]
[394974532,1764241032470,500.0,0.00014703,2]
[394974533,1764241032955,308.02115692,0.00014703,2]
[394974534,1764241032978,191.97884308,0.00014703,2]
[394974535,1764241033084,500.0,0.00014703,2]
[394974536,1764241033566,500.0,0.00014703,2]
[394974537,1764241033672,500.0,0.00014703,2]
[394974538,1764241034169,500.0,0.00014703,2]
[394974539,1764241034384,500.0,0.00014703,2]
[394974540,1764241034775,500.0,0.00014703,2]
[394974541,1764241034927,500.0,0.00014703,2]
[394974542,1764241035386,500.0,0.00014703,2]
[394974543,1764241035570,500.0,0.00014703,2]
[394974544,1764241036067,500.0,0.00014703,2]
[394974545,1764241036187,500.0,0.00014703,2]
[394974546,1764241036799,500.0,0.00014703,2]
[394974547,1764241037419,500.0,0.00014703,2]
[394974548,1764241040411,151.0,0.00014703,2]
[394974549,1764241040888,500.0,0.00014703,2]
[394974550,1764241041609,500.0,0.00014703,2]
[394974551,1764241042152,500.0,0.00014703,2]
[394974552,1764241042804,500.0,0.00014703,2]
[394974553,1764241043426,500.0,0.00014703,2]
[394974554,1764241044132,500.0,0.00014703,2]
[394974555,1764241044668,157.03115692,0.00014703,2]
[394974556,1764241044696,342.96884308,0.00014703,2]
[394974557,1764241045294,500.0,0.00014703,2]
[394974558,1764241045911,500.0,0.00014703,2]
[394974559,1764241046550,500.0,0.00014703,2]
[394974560,1764241047169,500.0,0.00014703,2]
[394974562,1764241083342,164.57946904,0.00014603,2]
[394974563,1764241099567,195.04354709,0.00014603,2]
[394974564,1764241141394,300.0,0.00014702,2]
[394974565,1764241185007,164.4620051,0.00014603,2]
[394974566,1764241201195,300.0,0.00014702,2]
[394974567,1764241201433,1200.0,0.00014702,2]
[394974568,1764241201628,300.0,0.00014702,2]
[394974569,1764241201961,525.7108,0.00014603,2]
[394974570,1764241202186,150.0,0.00014702,2]
[394974571,1764241203823,209.0,0.00014703,2]
[394974572,1764241205790,836.85,0.00014693,2]
[394974573,1764241206004,836.85,0.00014693,2]
[394974574,1764241292021,500.0,0.00014702,2]
[394974575,1764241292259,500.0,0.00014702,2]
[394974576,1764241293037,1474.54533569,0.00014409,2]
[394974577,1764241293061,47.79266431,0.00014409,2]
[394974578,1764241293238,154.119,0.00014409,2]
[394974579,1764241309359,500.0,0.00014702,2]
[394974580,1764241309582,500.0,0.00014702,2]
[394974581,1764241321627,300.0,0.00014702,2]
[394974582,1764241331125,151.0,0.00014703,2]
[394974583,1764241334453,4189.40437153,0.00014603,2]
[394974584,1764241336580,507.55013453,0.00014702,2]
[394974585,1764241338682,578.20924308,0.00014703,2]
[394974586,1764241355399,166.66,0.00014034,2]
[394974587,1764241355578,166.66,0.0001433,2]
[394974588,1764241355781,166.66,0.00014625,2]
[394974589,1764241382257,150.0,0.00014702,2]
[394974590,1764241384195,300.0,0.00014702,2]
[394974591,1764241400434,2121.95458655,0.00014703,2]
[394974592,1764241400457,10000.01,0.00014703,2]
[394974593,1764241400479,10000.01,0.00014703,2]
[394974594,1764241400502,10000.01,0.00014703,2]
[394974595,1764241400524,10000.01,0.00014703,2]
[394974596,1764241400547,9376.63307555,0.00014703,2]
[394974597,1764241441589,300.0,0.00014702,2]
[394974598,1764241450373,168.75184348,0.00014603,2]
[394974599,1764241458602,280.7424,0.00014603,2]
[394974600,1764241464995,163.39,0.00019178,30]
[394974601,1764241470912,1000.0,0.00014603,2]
[394974602,1764241488640,164.51541204,0.00014603,2]
[394974603,1764241501590,1200.0,0.00014702,2]
[394974604,1764241501731,300.0,0.00014702,2]
[394974605,1764241509875,3364.34997333,0.00014603,2]
[394974606,1764241562009,150.0,0.00014702,2]
[394974607,1764241572129,999.0,0.00014628,3]
[394974608,1764241596595,2072.65037115,0.00014623,2]
[394974609,1764241596616,10000.01,0.00014623,2]
[394974610,1764241596641,2473.92962885,0.00014623,2]
[394974611,1764241609285,500.0,0.00014702,2]
[394974612,1764241629178,151.0,0.00014703,2]
[394974613,1764241640918,500.0,0.00014702,2]
[394974614,1764241641144,578.20924308,0.00014703,2]
[394974615,1764241648632,10000.01,0.00014603,2]
[394974616,1764241648657,10000.01,0.00014603,2]
[394974617,1764241648682,10000.01,0.00014603,2]
[394974618,1764241648710,10000.01,0.00014603,2]
[394974619,1764241648739,10000.01,0.00014603,2]
[394974620,1764241648769,10000.01,0.00014603,2]
[394974621,1764241648795,10000.01,0.00014603,2]
[394974622,1764241648821,10000.01,0.00014603,2]
[394974623,1764241648848,10000.01,0.00014603,2]
[394974624,1764241648883,662411.52893663,0.00014603,2]
[394974625,1764241648910,7588.38106337,0.00014603,2]
[394974626,1764241672172,500.0,0.00014702,2]
[394974627,1764241681277,300.0,0.00014702,2]
[394974628,1764241692739,1176.98,0.0001459,2]
[394974629,1764241703977,500.0,0.00014702,2]
[394974630,1764241709603,500.0,0.00014702,2]
[394974631,1764241709838,343.53785786,0.00014702,2]
[394974632,1764241745027,6679.49214214,0.00014703,2]
[394974633,1764241745052,10000.01,0.00014703,2]
[394974634,1764241745074,10000.01,0.00014703,2]
[394974635,1764241745096,10000.01,0.00014703,2]
[394974636,1764241745118,10000.01,0.00014703,2]
[394974637,1764241745139,10000.01,0.00014703,2]
[394974638,1764241745161,10000.01,0.00014703,2]
[394974639,1764241745183,10000.01,0.00014703,2]
[394974640,1764241745205,10000.01,0.00014703,2]
[394974641,1764241745227,10000.01,0.00014703,2]
[394974643,1764241750743,326.77162266,0.00016,14]
[394974644,1764241767253,680.081712,0.00014629,2]
[394974645,1764241773343,-2321.12228732,0.00014703,2]
[394974646,1764241773492,-10000.01,0.00014703,2]
[394974647,1764241773625,-717.48339776,0.00014703,2]
[394974648,1764241773650,-8565.04320448,0.00014703,2]
[394974649,1764241775246,200.69676832,0.00014629,2]
[394974651,1764241782108,318.328044,0.00014629,2]
[394974652,1764241784312,500.0,0.00014603,2]
[394974653,1764241784507,775.33,0.00013699,2]
[394974654,1764241790590,1285.57050481,0.00014603,2]
[394974656,1764241801250,300.0,0.00014702,2]
[394974657,1764241801316,1200.0,0.00014702,2]
[394974658,1764241801903,300.0,0.00014702,2]
[394974659,1764241803777,209.0,0.00014703,2]
[394974662,1764241808217,3727.632585,7.945e-05,2]
[394974721,1764241817698,1183.45209787,0.00014603,2]
[394974722,1764241817728,10000.01,0.00014603,2]
[394974723,1764241817757,10000.01,0.00014603,2]
[394974725,1764241817944,10000.01,0.00014603,2]
[394974726,1764241817973,10000.01,0.00014603,2]
[394974727,1764241818001,10000.01,0.00014603,2]
[394974729,1764241818030,10000.01,0.00014603,2]
[394974731,1764241818059,10000.01,0.00014603,2]
[394974732,1764241818088,10000.01,0.00014603,2]
[394974733,1764241818117,10000.01,0.00014603,2]
[394974735,1764241818144,668816.45790213,0.00014603,2]
[394974773,1764241829971,-987.02951012,0.00014703,2]
[394974775,1764241831302,4319.21703826,0.00014703,2]
[394974780,1764241832266,-7318.1934,0.00014703,2]
[394974781,1764241832276,-313.50641,0.00014703,2]
[394974784,1764241832320,-286.49359,0.00014703,2]
[394974786,1764241832330,-466.7998894,0.00014703,2]
[394974788,1764241832339,-118.68677642,0.00014703,2]
[394974790,1764241832350,-76.31322358,0.00014703,2]
[394974791,1764241832359,-195.0,0.00014703,2]
[394974792,1764241832369,-250.0,0.00014703,2]
[394974793,1764241832378,-168.0,0.00014788,2]
[394974794,1764241832387,-135.13736725,0.00014802,2]
[394974795,1764241832397,-364.86263275,0.00014802,2]
[394974796,1764241832406,-500.0,0.00014802,2]
[394974797,1764241832415,-532.59359614,0.00014802,2]
[394974798,1764241832424,-310.52351775,0.00014802,2]
[394974799,1764241832433,-2209.7,0.00014806,2]
[394974800,1764241832442,-166.66,0.00014921,2]
[394974801,1764241832452,-413.98009701,0.00014969,2]
[394974802,1764241832535,-2950.3698763,0.00014969,2]
[394974803,1764241832545,-150.0,0.00014983,2]
[394974804,1764241832554,-300.0,0.00015039,2]
[394974805,1764241832564,-168.0,0.0001504,2]
[394974806,1764241832573,-2250.17,0.0001504,2]
[394974807,1764241832583,-19999.99,0.0001504,2]
[394974808,1764241832592,-3569.14,0.00015055,2]
[394974809,1764241832601,-150.0,0.0001506,2]
[394974810,1764241832610,-439.91684237,0.00015158,2]
[394974811,1764241832620,-166.66,0.00015216,2]
[394974812,1764241832629,-233.2349727,0.00015251,2]
[394974813,1764241832639,-282.0,0.00015286,2]
[394974814,1764241832648,-150.0,0.00015288,2]
[394974815,1764241832657,-150.0,0.00015288,2]
[394974816,1764241832672,-150.0,0.00015288,2]
[394974817,1764241832683,-150.0,0.00015288,2]
[394974818,1764241832692,-150.0,0.00015288,2]
[394974819,1764241832702,-150.0,0.00015288,2]
[394974820,1764241832711,-150.0,0.00015288,2]
[394974821,1764241832720,-150.0,0.00015288,2]
[394974822,1764241832729,-150.0,0.00015288,2]
[394974823,1764241832738,-158.24414474,0.00015288,2]
[394974824,1764241832748,-150.0,0.00015288,2]
[394974825,1764241832757,-702.04,0.000153,2]
[394974826,1764241832767,-702.04,0.000153,2]
[394974827,1764241832776,-337.09526351,0.00015316,2]
[394974828,1764241832784,-3364.34997331,0.00015336,2]
[394974829,1764241832794,-150.0,0.00015401,2]
[394974830,1764241832803,-150.0,0.00015418,2]
[394974831,1764241832813,-200.0,0.00015428,2]
[394974832,1764241832822,-1852.42,0.00015456,2]
[394974833,1764241832831,-2751.0,0.00015492,2]
[394974834,1764241832841,-150.0,0.000155,2]
[394974835,1764241832850,-166.66,0.00015511,2]
[394974836,1764241832864,-150.0,0.00015514,2]
[394974837,1764241832873,-150.0,0.0001553,2]
[394974838,1764241832882,-150.0,0.00015549,2]
[394974839,1764241832891,-150.0,0.00015571,2]
[394974840,1764241832900,-150.0,0.00015627,2]
[394974841,1764241832909,-150.0,0.0001568,2]
[394974842,1764241832919,-164.51541203,0.00015702,2]
[394974843,1764241832928,-3364.34997331,0.00015702,2]
[394974844,1764241833126,-150.0,0.00015712,2]
[394974845,1764241833136,-150.0,0.00015741,2]
[394974846,1764241833146,-150.0,0.00015773,2]
[394974847,1764241833155,-150.0,0.0001581,2]
[394974848,1764241833165,-1602.0,0.00015812,2]
[394974849,1764241833174,-1321.0,0.00015812,2]
[394974850,1764241833186,-610.0,0.00015812,2]
[394974851,1764241833195,-1257.0,0.00015812,2]
[394974852,1764241833204,-823.0,0.00015812,2]
[394974853,1764241833213,-660.0,0.00015812,2]
[394974854,1764241833222,-909.0,0.00015812,2]
[394974855,1764241833231,-1193.0,0.00015812,2]
[394974856,1764241833242,-2717.0,0.00015812,2]
[394974857,1764241833251,-6503.0,0.00015812,2]
[394974858,1764241833260,-562.0,0.00015812,2]
[394974859,1764241833270,-168.0,0.00015824,2]
[394974860,1764241833280,-150.0,0.00015854,2]
[394974861,1764241833289,-150.0,0.00015854,2]
[394974862,1764241833299,-168.0,0.00015864,2]
[394974863,1764241833309,-519.11744775,0.000159,2]
[394974864,1764241833318,-168.1727714,0.000159,2]
[394974865,1764241833329,-150.0,0.00015925,2]
[394974866,1764241833338,-150.0,0.00015941,2]
[394974867,1764241833347,-150.0,0.00015967,2]
[394974868,1764241833356,-500.0,0.00015972,2]
[394974869,1764241833366,-500.0,0.00015972,2]
[394974870,1764241833378,-182.37531469,0.00015972,2]
[394974871,1764241833387,-635.50412703,0.00015972,2]
[394974872,1764241833396,-195.96729119,0.00015972,2]
[394974873,1764241833405,-501.20243552,0.00015973,2]
[394974874,1764241833414,-500.0,0.00015973,2]
[394974875,1764241833424,-546.23,0.00015973,2]
[394974876,1764241833432,-500.0,0.00015973,2]
[394974877,1764241833442,-500.0,0.00015973,2]
[394974878,1764241833451,-5967.2326281,0.00015974,2]
[394974879,1764241833460,-151.0,0.00015997,2]
[394974880,1764241833470,-500.0,0.00015999,2]
[394974881,1764241833479,-276.83983389,0.00015999,2]
[394974882,1764241833488,-492.46873344,0.00015999,2]
[394974883,1764241833497,-242.06428619,0.00015999,2]
[394974884,1764241833506,-500.0,0.00015999,2]
[394974885,1764241833515,-500.0,0.00015999,2]
[394974886,1764241833524,-79153.81938973,0.00016,4]
[394974892,1764241838247,-24728.10081384,0.00016,4]
[394974893,1764241838258,-1373.7883287,0.00016,4]
[394974894,1764241838300,-2169.18029496,0.00016,4]
[394974895,1764241838505,-6.94833716,0.00016,4]
[394974936,1764241841285,-0.07681686,0.00016,4]
[394974937,1764241841303,-2463.33,0.00016,4]
[394974940,1764241844178,-202.92524,0.0001584,2]
[394974941,1764241844188,-138.056516,0.0001597,2]
[394974942,1764241845068,-64.868734,0.0001597,2]
[394974943,1764241845078,-1192.62564717,0.00016,4]
[394974944,1764241846433,-857.78653128,0.00016,4]
[394974945,1764241846644,-23171.28,0.00016,4]
[394974946,1764241846749,-271.0542,0.00016,4]
[394975015,1764241867688,3706.7339415,7.945e-05,2]
[394975016,1764241867711,1690.3153745,7.945e-05,2]
[394975020,1764241954781,265.7932,0.00014603,2]
[394975021,1764242068284,185.14584556,0.000147,2]
[394975044,1764242174911,170.0,6.8e-07,2]
[394975045,1764242294269,4799.47032279,0.00013,5]
[394975046,1764242294294,723.52967721,0.00013,5]
[394975047,1764242294495,5523.0,0.000128,3]
[394975048,1764242294724,4307.01,0.000126,2]
[394975049,1764242294745,10000.01,0.000126,2]
[394975050,1764242294767,10000.01,0.000126,2]
[394975051,1764242294788,10000.01,0.000126,2]
[394975052,1764242294809,10000.01,0.000126,2]
[394975053,1764242294829,19036.95,0.000126,2]
[394975056,1764242385383,1062.9,0.00025,120]
[394975057,1764242396872,471.89435725,0.00014691,2]
[394975058,1764242411624,483.62,0.00014614,2]
[394975059,1764242414262,171.7,0.00025,120]
[394975060,1764242427171,9044.49564275,0.00014641,2]
[394975061,1764242427193,3556.80370025,0.00014641,2]
[394975062,1764242429573,10000.01,0.0001465,2]
[394975063,1764242429598,10000.01,0.0001465,2]
[394975064,1764242429619,374.63,0.0001465,2]
[394975065,1764242440395,814.6051539,0.000126,2]
[394975068,1764242520140,167.32,0.00014592,2]
[394975069,1764242558447,200.0,6.9e-05,2]
[394975070,1764242558691,400.0,8.4e-05,2]
[394975071,1764242558940,600.0,9.9e-05,2]
[394975072,1764242559170,800.0,0.000114,2]
[394975073,1764242559470,1000.0,0.000129,2]
[394975074,1764242569242,-1200.0,0.00014715,2]
[394975075,1764242569273,-300.0,0.00014715,2]
[394975076,1764242569301,-209.0,0.00014715,2]
[394975077,1764242569329,-200.0,0.00014745,2]
[394975078,1764242569356,-3005.0,0.00014791,2]
[394975079,1764242569507,-172.01,0.00014791,2]
[394975080,1764242624454,250.0,0.00014608,2]
[394975081,1764242706381,10000.01,0.00014587,2]
[394975082,1764242706404,10000.01,0.00014587,2]
[394975083,1764242706428,10000.01,0.00014587,2]
[394975084,1764242706452,6205.21,0.00014587,2]
[394975087,1764242719129,3002.62318644,9e-05,2]
[394975088,1764242725058,1021.82221131,0.000108,2]
[394975089,1764242730866,200.0,0.0001453,2]
[394975090,1764242760340,5775.56460225,8e-05,2]
[394975091,1764242760367,4227.11360054,8e-05,2]
[394975092,1764242764170,5772.89639946,0.00011,2]
[394975093,1764242764191,3595.87091902,0.00011,2]
[394975094,1764242766142,374.90706105,0.00014887,2]
[394975098,1764242834823,5312.96327068,0.0001305,2]
[394975099,1764242865632,716.26874925,0.00013,2]
[394975100,1764242865653,3683.7133334,0.00013,2]
[394975101,1764242886721,6316.2966666,0.0001439,2]
[394975102,1764242886743,3931.76347193,0.0001439,2]
[394975103,1764242889585,1000.0,0.000135,2]
[394975104,1764242889831,305.58802094,0.000125,2]
[394975105,1764242897006,1320.95523533,0.0001,2]
[394975106,1764242898857,389.32128991,7.888e-05,2]
[394975107,1764242942996,200.0,0.00014318,2]
[394975108,1764242975775,1000.0,0.00014386,2]
[394975110,1764243031444,-212.0,0.00014967,2]
[394975112,1764243031454,-195.0,0.00014967,2]
[394975113,1764243031463,-359.22784662,0.00014971,2]
[394975115,1764243031478,-218.98139646,0.00014971,2]
[394975117,1764243031488,-195.0,0.00014973,2]
[394975118,1764243031497,-1200.0,0.00014986,2]
[394975119,1764243031506,-1200.0,0.00014986,2]
[394975120,1764243031516,-300.0,0.00014986,2]
[394975121,1764243031525,-300.0,0.00014986,2]
[394975122,1764243031534,-150.0,0.00014987,2]
[394975123,1764243031543,-1287.22789811,0.00014988,2]
[394975124,1764243031555,-346.9846993,0.00014988,2]
[394975170,1764243032114,-365.78740259,0.00014988,2]
[394975171,1764243032124,-106.05864388,0.00014988,2]
[394975172,1764243032147,-527.15395353,0.00014988,2]
[394975173,1764243032166,-1366.78740259,0.00014988,2]
[394975174,1764243032175,-2000.0,0.00014988,2]
[394975175,1764243032185,-188.75835089,0.00014988,2]
[394975181,1764243037451,-437.52161787,0.00014988,2]
[394975182,1764243037462,-1373.72003124,0.00014988,2]
[394975183,1764243037472,-2000.0,0.00014988,2]
[394975184,1764243037481,-980.794,0.00014988,2]
[394975185,1764243037491,-1000.0,0.00014988,2]
[394975186,1764243037500,-1000.0,0.00014988,2]
[394975187,1764243037509,-1000.0,0.00014988,2]
[394975188,1764243037520,-1000.0,0.00014988,2]
[394975189,1764243037529,-1000.0,0.00014988,2]
[394975190,1764243037539,-1000.0,0.00014988,2]
[394975191,1764243037548,-1000.0,0.00014988,2]
[394975192,1764243037558,-1000.0,0.00014988,2]
[394975193,1764243037567,-1000.0,0.00014988,2]
[394975194,1764243037577,-1000.0,0.00014988,2]
[394975195,1764243037586,-1000.0,0.00014988,2]
[394975196,1764243037595,-1000.0,0.00014988,2]
[394975197,1764243037606,-1000.0,0.00014988,2]
[394975198,1764243037615,-1000.0,0.00014988,2]
[394975199,1764243037624,-294.646,0.00014988,2]
[394975200,1764243037633,-2030.60423229,0.00015,2]
[394975201,1764243039633,-4621.47916256,0.00015,2]
[394975202,1764243039747,-501.46361147,0.00015,2]
[394975203,1764243039757,-592.05525863,0.00015,2]
[394975204,1764243039790,-13047.91042572,0.00015,2]
[394975205,1764243039799,-259.37800203,0.00015009,2]